bitfinex-derivatives/quotes_ETHF0:USTF0_20250919
["timestamp","ask_amount","ask_price","bid_price","bid_amount"]
[1758263825833,0.051,4538.7,4538.1,3.2078]
[1758263826139,0.2142,4538.1,4538.0,0.5383]
[1758263826332,0.1632,4538.1,4538.0,0.6558]
[1758263826636,0.1632,4538.1,4538.0,0.8632]
[1758263826835,0.1632,4538.1,4538.0,0.6412]
[1758263827036,0.1632,4538.1,4538.0,0.8632]
[1758263827333,0.1632,4538.1,4538.0,0.6412]
[1758263827543,0.2142,4538.1,4538.0,0.6558]
[1758263827734,0.1632,4538.1,4538.0,0.8632]
[1758263828134,0.1632,4538.1,4538.0,1.0644]
[1758263829030,0.1632,4538.1,4538.0,0.6412]
[1758263829335,0.1632,4538.1,4537.8,0.5383]
[1758263829336,0.1632,4537.9,4537.8,0.5383]
[1758263829543,0.1632,4537.9,4537.8,0.7249]
[1758263829739,0.0816,4537.9,4537.8,0.7249]
[1758263829940,0.0816,4537.9,4537.8,0.9469]
[1758263830136,0.273,4538.5,4537.8,0.7249]
[1758263830336,0.1632,4538.5,4538.4,0.5237]
[1758263830542,3.9423197,4538.5,4538.4,0.5237]
[1758263833045,3.9933197,4538.5,4538.4,0.5237]
[1758263833238,3.9933197,4538.5,4538.4,0.3163]
[1758263834940,0.2142,4538.5,4538.4,0.3163]
[1758263840143,0.1632,4538.3,4538.2,0.022]
[1758263840344,0.4362,4538.3,4538.2,0.022]
[1758263840547,0.2142,4538.2,4538.1,0.3163]
[1758263841043,1.28657245,4538.2,4538.1,0.3163]
[1758263841244,0.1632,4537.7,4537.6,0.3163]
[1758263841440,1.28657245,4537.7,4537.6,0.3163]
[1758263842348,3.2078,4537.9,4537.6,0.4086]
[1758263842550,3.2078,4537.9,4537.8,1.79727245]
[1758263844647,3.2894,4537.9,4537.8,0.7249]
[1758263845046,3.2078,4537.9,4537.8,0.7249]
[1758263846155,3.2078,4537.9,4537.8,1.79727245]
[1758263847343,0.0816,4538.1,4538.0,0.3187]
[1758263847551,0.1632,4538.1,4538.0,0.8424]
[1758263849654,3.2078,4538.3,4538.1,0.3141]
[1758263849848,3.2078,4538.3,4538.2,1.49567245]
[1758263850054,3.2078,4538.3,4538.2,1.80977245]
[1758263850351,3.2078,4538.3,4538.2,0.7374]
[1758263850546,3.3716,4538.3,4538.2,0.3141]
[1758263850749,3.4228,4538.3,4538.2,0.3141]
[1758263850953,3.4228,4538.3,4538.0,0.1175]
[1758263851156,0.215,4538.2,4538.1,0.3141]
[1758263851352,1.28737245,4538.2,4538.1,0.3141]
[1758263852054,0.1638,4538.2,4538.1,0.7374]
[1758263853755,0.0819,4538.2,4538.1,0.7374]
[1758263854547,0.222,4538.5,4538.4,0.2109]
[1758263854753,0.3039,4538.5,4538.4,0.7374]
[1758263855053,0.3039,4538.6,4538.5,0.8593]
[1758263856948,0.437,4538.6,4538.5,0.436]
[1758263857148,0.1638,4538.3,4538.2,0.3141]
[1758263857461,4.49517245,4538.3,4538.2,0.3141]
[1758263857856,0.1638,4537.7,4537.6,0.2329]
[1758263858054,0.1638,4537.7,4537.6,0.4453]
[1758263858249,0.1638,4537.7,4537.6,0.4233]
[1758263858455,0.0819,4537.7,4537.6,0.7374]
[1758263860658,0.1638,4537.7,4537.6,0.7374]
[1758263861354,0.0819,4537.7,4537.6,0.7374]
[1758263861550,1.07237245,4538.0,4537.7,0.3141]
[1758263861754,0.0819,4538.0,4537.9,0.7374]
[1758263861955,0.99779115,4538.0,4537.9,0.7374]
[1758263862256,1.07969115,4538.0,4537.9,0.7374]
[1758263862762,0.1638,4538.0,4537.9,0.7374]
[1758263863061,1.07969115,4538.0,4537.9,0.7374]
[1758263864161,1.07969115,4538.0,4537.9,0.525]
[1758263864360,2.0467823,4538.0,4537.9,0.3141]
[1758263864562,6.5403423,4538.0,4537.7,0.022]
[1758263864757,5.2033823,4537.8,4537.1,0.3141]
[1758263864961,0.215,4537.1,4537.0,0.1175]
[1758263865161,0.215,4537.1,4537.0,0.4316]
[1758263865561,0.1638,4537.1,4537.0,0.4316]
[1758263866162,0.1638,4537.1,4537.0,0.6425]
[1758263866859,0.215,4537.1,4537.0,0.4316]
[1758263867065,0.1638,4537.1,4537.0,0.8549]
[1758263867965,0.0819,4537.1,4537.0,0.8549]
[1758263870263,3.8610197,4537.1,4537.0,0.8549]
[1758263871965,3.9429197,4537.1,4537.0,0.8549]
[1758263875164,3.7791197,4537.1,4537.0,0.8549]
[1758263875359,3.7791197,4537.1,4537.0,2.6866823]
[1758263875560,3.7791197,4537.1,4537.0,1.77079115]
[1758263875969,3.7791197,4537.1,4537.0,2.6866823]
[1758263876170,3.7791197,4537.1,4537.0,6.9070923]
[1758263876672,3.7791197,4537.1,4537.0,5.99120115]
[1758263876865,3.7791197,4537.1,4537.0,5.77079115]
[1758263877067,4.77581085,4538.2,4538.1,0.7266]
[1758263877372,4.99781085,4538.2,4538.1,0.7266]
[1758263877568,3.2078,4538.3,4538.1,0.7266]
[1758263877772,3.2078,4538.3,4538.2,1.64249115]
[1758263878768,3.2892,4538.3,4538.2,0.7266]
[1758263879070,4.33739115,4538.3,4538.2,0.3193]
[1758263879273,0.2137,4538.1,4538.0,0.3098]
[1758263879464,1.35159115,4538.1,4538.0,0.3098]
[1758263879863,1.35159115,4538.1,4537.5,0.1276]
[1758263879864,0.0509,4538.0,4537.5,0.1276]
[1758263880068,0.0509,4538.0,4537.5,0.6468]
[1758263880069,1.07869115,4537.6,4537.5,0.6468]
[1758263880268,1.07869115,4537.6,4537.5,0.8454]
[1758263880963,0.91589115,4537.7,4537.5,0.8454]
[1758263881169,3.9419197,4538.2,4538.1,0.7178]
[1758263881362,5.07981085,4538.2,4538.1,0.7178]
[1758263882375,4.99841085,4538.2,4538.1,0.7178]
[1758263884375,3.8605197,4538.2,4538.1,0.7178]
[1758263884577,4.77641085,4538.2,4538.1,0.7178]
[1758263885776,4.85781085,4538.2,4538.1,0.7178]
[1758263885980,0.1323,4537.7,4537.6,0.3098]
[1758263886278,0.1628,4537.6,4537.5,0.4374]
[1758263886482,0.1628,4537.6,4537.5,0.8454]
[1758263886782,3.8605197,4537.6,4537.5,0.8454]
[1758263887884,4.77641085,4537.6,4537.5,0.8454]
[1758263889170,4.85781085,4537.6,4537.5,0.4374]
[1758263889372,4.90871085,4537.6,4537.5,0.4374]
[1758263889774,8.11651085,4537.6,4537.5,0.4374]
[1758263890079,0.2137,4537.1,4537.0,0.1175]
[1758263890371,0.1628,4536.7,4536.6,0.5192]
[1758263890576,1.07869115,4536.7,4536.6,0.5192]
[1758263891277,1.07869115,4536.7,4536.6,0.7178]
[1758263893477,0.1628,4536.7,4536.6,0.7178]
[1758263893679,4.42709115,4537.1,4537.0,0.8437]
[1758263894181,4.20509115,4537.1,4537.0,0.8437]
[1758263895281,3.2892,4537.1,4537.0,0.8437]
[1758263895679,7.0683197,4537.1,4537.0,0.8437]
[1758263897176,6.9869197,4537.1,4537.0,0.8437]
[1758263897378,6.9869197,4537.1,4537.0,2.6754823]
[1758263897379,3.7791197,4537.1,4537.0,2.6754823]
[1758263897773,3.7791197,4537.1,4537.0,1.75959115]
[1758263897973,3.7791197,4537.1,4537.0,0.8437]
[1758263898177,3.7791197,4537.1,4537.0,4.96739115]
[1758263898480,0.3034,4537.8,4537.7,0.7178]
[1758263899781,0.3848,4537.8,4537.7,0.7178]
[1758263900875,0.1628,4537.8,4537.7,0.3098]
[1758263901081,0.2137,4537.8,4537.7,0.3098]
[1758263901284,0.1628,4537.2,4537.1,0.3098]
[1758263901481,0.1628,4537.2,4537.1,0.5192]
[1758263901482,1.07869115,4537.2,4537.1,0.5192]
[1758263901786,0.2137,4537.1,4537.0,0.4357]
[1758263901977,1.07869115,4537.1,4537.0,0.6451]
[1758263905681,0.1628,4537.1,4537.0,0.6451]
[1758263905878,1.07869115,4537.1,4537.0,0.6451]
[1758263907584,4.85781085,4537.1,4537.0,0.6451]
[1758263908285,4.85781085,4537.1,4537.0,0.8437]
[1758263908576,3.7791197,4537.1,4537.0,1.75959115]
[1758263911379,3.7791197,4537.1,4537.0,1.98159115]
[1758263911586,4.90921085,4537.1,4537.0,0.4357]
[1758263911782,0.1632,4536.1,4536.0,0.4208]
[1758263911981,0.2142,4536.0,4535.9,0.022]
[1758263912181,0.1632,4536.0,4535.9,0.5092]
[1758263912691,0.1632,4535.8,4535.7,0.2949]
[1758263913285,0.2142,4535.8,4535.7,0.2949]
[1758263914283,1.07909115,4535.8,4535.7,0.5092]
[1758263916094,1.13009115,4535.8,4535.7,0.2949]
[1758263916389,1.07909115,4535.8,4535.7,0.5092]
[1758263917682,1.07909115,4535.8,4535.7,0.7171]
[1758263921490,3.7791197,4536.0,4535.7,0.7171]
[1758263921691,3.7791197,4536.0,4535.9,0.7171]
[1758263922397,3.8607197,4536.0,4535.9,0.7171]
[1758263923292,3.7791197,4536.0,4535.9,0.7171]
[1758263923499,3.7791197,4536.0,4535.9,4.7171]
[1758263923990,3.7791197,4536.0,4535.9,5.78924632]
[1758263925791,3.7791197,4536.5,4535.9,5.78924632]
[1758263926090,3.8607197,4536.5,4536.4,3.9249]
[1758263926695,3.9423197,4536.5,4536.4,0.7171]
[1758263928396,3.8607197,4536.5,4536.4,0.7171]
[1758263933096,3.9423197,4536.5,4536.4,0.7171]
[1758263933501,0.1632,4536.1,4536.0,0.022]
[1758263933696,1.50834632,4536.1,4536.0,0.022]
[1758263934603,1.45734632,4536.1,4535.6,3.2078]
[1758263934803,1.23534632,4535.8,4535.7,0.2949]
[1758263937510,1.28594632,4535.8,4535.7,0.2949]
[1758263939419,1.23534632,4535.8,4535.7,0.2949]
[1758263940017,1.23534632,4535.8,4535.7,0.5035]
[1758263947821,1.28654632,4535.8,4535.7,0.5035]
[1758263948222,1.23534632,4535.8,4535.7,0.5035]
[1758263949323,1.23534632,4535.8,4535.7,0.7255]
[1758263951522,1.23534632,4535.8,4535.7,0.5035]
[1758263951724,1.23534632,4535.8,4535.7,0.7255]
[1758263952223,5.01446602,4535.8,4535.7,0.7255]
[1758263952722,5.01446602,4535.8,4535.7,0.5035]
[1758263952923,5.01446602,4535.8,4535.7,0.7255]
[1758263953223,5.06566602,4535.8,4535.7,0.2949]
[1758263953724,3.9423197,4535.8,4535.7,0.6999]
[1758263953924,3.8607197,4535.8,4535.7,0.6999]
[1758263955831,3.8610197,4535.8,4535.7,0.7256]
[1758263956017,4.66421632,4535.8,4535.5,0.3426]
[1758263956324,0.215,4535.6,4535.5,0.3426]
[1758263956530,0.215,4535.6,4535.5,0.4667]
[1758263956715,0.215,4535.6,4535.5,0.4447]
[1758263956914,0.1638,4535.6,4535.5,0.6533]
[1758263957119,0.0819,4535.6,4535.5,0.8497]
[1758263957323,0.1638,4535.6,4535.5,0.8497]
[1758263957827,0.0819,4535.6,4535.5,0.8497]
[1758263959322,3.2897,4535.8,4535.7,0.7256]
[1758263960028,3.3716,4535.8,4535.7,0.7256]
[1758263961425,4.49494632,4535.8,4535.7,0.5292]
[1758263961629,4.49494632,4535.8,4535.7,0.3206]
[1758263964628,4.44374632,4535.8,4535.7,0.5292]
[1758263965428,3.2078,4536.3,4536.2,0.405]
[1758263965623,0.3858,4536.6,4536.5,0.4447]
[1758263965829,0.61531101,4536.6,4536.5,0.6533]
[1758263966131,0.39331101,4536.6,4536.5,0.8497]
[1758263966333,0.1638,4536.6,4536.5,0.8497]
[1758263966938,0.0819,4536.6,4536.5,0.8497]
[1758263967134,3.7791197,4536.9,4536.6,0.3206]
[1758263967332,0.0819,4536.7,4536.6,0.5292]
[1758263967627,3.8610197,4536.9,4536.8,0.405]
[1758263967830,3.8610197,4536.9,4536.8,0.7256]
[1758263969427,3.7791197,4536.9,4536.8,0.7256]
[1758263971335,3.8607197,4536.9,4536.8,0.7256]
[1758263973638,3.9933197,4536.9,4536.8,0.5426]
[1758263974034,3.9423197,4536.9,4536.8,0.7463]
[1758263974927,3.9423197,4536.9,4536.8,0.5243]
[1758263978334,3.9423197,4536.9,4536.8,0.7324]
[1758263980035,3.7791197,4536.9,4536.8,0.7324]
[1758263980735,3.7791197,4537.3,4537.0,0.1173]
[1758263980937,3.9423197,4537.3,4537.2,0.5033]
[1758263981243,0.2142,4537.2,4537.1,0.5216]
[1758263982138,0.1632,4537.2,4537.1,0.9334]
[1758263983942,0.0816,4537.2,4537.1,0.9334]
[1758263984242,0.1632,4537.2,4537.1,0.9334]
[1758263986044,0.0816,4537.2,4537.1,0.9334]
[1758263990837,0.91611138,4537.4,4537.2,0.2996]
[1758263991042,0.99771138,4537.4,4537.3,0.7114]
[1758263992644,1.07931138,4537.4,4537.3,0.7114]
[1758263992844,0.0816,4538.1,4538.0,0.6206]
[1758263993042,1.07931138,4538.1,4538.0,0.8287]
[1758263993244,1.29967138,4538.1,4538.0,0.8287]
[1758263993845,1.07931138,4538.1,4538.0,0.8287]
[1758263994054,1.07931138,4538.1,4538.0,0.6206]
[1758263994240,1.13031138,4538.1,4538.0,0.6206]
[1758263994946,4.90943108,4538.1,4538.0,0.6206]
[1758263995145,4.85843108,4538.1,4538.0,0.6206]
[1758263996247,5.08571683,4538.1,4538.0,0.6206]
[1758263996445,4.85843108,4538.1,4538.0,0.6206]
[1758263998047,4.85843108,4538.1,4538.0,0.8271]
[1758263998242,5.08576067,4538.1,4538.0,0.6206]
[1758263998447,5.13696067,4538.1,4538.0,0.6206]
[1758264000355,5.13696067,4538.1,4538.0,0.4169]
[1758264000647,0.1638,4537.6,4537.5,0.1173]
[1758264000852,1.13111138,4537.6,4537.5,0.6398]
[1758264001152,1.07991138,4537.6,4537.5,0.6116]
[1758264003254,1.07991138,4537.6,4537.5,0.8154]
[1758264003853,1.07991138,4537.6,4537.5,1.0374]
[1758264004253,1.07991138,4537.6,4537.5,0.8154]
[1758264004655,1.07991138,4537.6,4537.5,1.0374]
[1758264006052,0.1638,4537.6,4537.5,1.0374]
[1758264006655,0.1638,4537.6,4537.5,0.8154]
[1758264006957,0.1638,4537.6,4537.5,1.0374]
[1758264010860,0.1638,4537.6,4537.5,0.8154]
[1758264011165,0.215,4537.6,4537.5,0.4178]
[1758264012767,1.07991138,4537.6,4537.5,0.6116]
[1758264012963,1.07991138,4537.6,4537.5,0.8154]
[1758264014467,1.35883716,4537.6,4537.5,0.6116]
[1758264014967,1.35883716,4537.6,4537.5,0.4178]
[1758264015567,1.35883716,4537.6,4537.5,0.6116]
[1758264015862,1.30763716,4537.6,4537.5,0.6116]
[1758264016068,5.08675686,4537.6,4537.5,0.6116]
[1758264018576,5.08675686,4537.6,4537.5,0.8154]
[1758264023780,5.13795686,4537.6,4537.5,0.6116]
[1758264024171,5.08675686,4537.6,4537.5,0.6116]
[1758264029177,5.13998351,4537.6,4537.5,0.6116]
[1758264031075,4.17297213,4537.6,4537.5,0.6116]
[1758264031281,5.08908351,4537.6,4537.5,0.6116]
[1758264031578,5.13998351,4537.6,4537.5,0.6116]
[1758264032178,5.08908351,4537.6,4537.5,0.6116]
[1758264032380,3.7791197,4537.6,4537.5,1.72691138]
[1758264032580,4.0011197,4538.1,4537.5,1.72691138]
[1758264032775,4.1639197,4538.1,4538.0,0.3281]
[1758264032980,5.31009471,4538.1,4538.0,0.6389]
[1758264033582,5.31009471,4538.1,4538.0,0.8381]
[1758264033881,5.31009471,4538.1,4538.0,0.6389]
[1758264034079,0.2137,4537.7,4537.6,0.3108]
[1758264034280,4.28671138,4537.7,4537.6,0.715]
[1758264034874,1.07891138,4537.7,4537.6,0.715]
[1758264038188,8.11673108,4537.7,4537.6,0.3108]
[1758264040284,8.34680989,4537.7,4537.6,0.3108]
[1758264040480,0.2137,4537.6,4537.4,0.022]
[1758264040680,1.35989019,4537.5,4537.4,0.3328]
[1758264040987,1.35989019,4537.5,4537.4,0.3108]
[1758264042284,1.12981138,4537.5,4537.4,0.3108]
[1758264042585,0.1628,4537.5,4537.4,0.5158]
[1758264042785,3.7791197,4537.7,4537.6,0.4042]
[1758264042987,4.00917174,4537.7,4537.6,1.63111138]
[1758264043589,3.7791197,4537.7,4537.6,1.63111138]
[1758264044691,4.17197313,4537.7,4537.6,0.5158]
[1758264045093,4.17197313,4537.7,4537.6,0.715]
[1758264045690,3.9419197,4537.7,4537.6,0.715]
[1758264046292,4.17198087,4537.7,4537.6,0.715]
[1758264046491,3.9419197,4537.7,4537.6,0.715]
[1758264055002,0.1628,4537.5,4537.4,0.022]
[1758264055202,0.2137,4537.5,4537.4,0.3328]
[1758264055404,0.2137,4537.5,4537.4,0.3108]
[1758264055606,0.1628,4537.5,4537.4,0.5158]
[1758264055904,0.1628,4537.5,4537.4,0.715]
[1758264058800,0.1628,4537.5,4537.2,0.02530462]
[1758264058801,1.51615338,4537.5,4537.2,0.02530462]
[1758264059000,0.39336632,4537.4,4537.3,0.2987]
[1758264059204,0.44406632,4537.4,4537.3,0.2987]
[1758264062007,3.9415197,4537.4,4537.3,0.7026]
[1758264062308,3.7791197,4537.4,4537.3,0.7026]
[1758264063105,3.8603197,4537.4,4537.3,0.7026]
[1758264065108,3.9415197,4537.4,4537.3,0.7026]
[1758264067715,4.44519298,4537.4,4537.2,0.02530462]
[1758264068014,4.2142197,4537.4,4537.2,0.02530462]
[1758264068214,0.2131,4537.3,4537.2,0.02530462]
[1758264068511,3.9922197,4537.3,4537.2,0.30200462]
[1758264072509,3.9415197,4537.3,4537.2,0.70590462]
[1758264072709,3.7791197,4537.3,4537.2,0.70590462]
[1758264073215,3.8603197,4537.3,4537.2,0.70590462]
[1758264074112,3.7791197,4537.3,4537.2,0.70590462]
[1758264078914,3.8603197,4537.3,4537.2,0.70590462]
[1758264081221,3.8603197,4537.3,4537.2,0.92790462]
[1758264087225,3.9415197,4537.3,4537.2,0.92790462]
[1758264087424,3.8603197,4537.3,4537.2,0.92790462]
[1758264087620,3.7791197,4537.3,4537.2,0.92790462]
[1758264087830,3.7791197,4537.3,4537.2,1.99959168]
[1758264088226,3.8603197,4537.3,4537.2,1.99959168]
[1758264089228,3.7791197,4537.3,4537.2,1.99959168]
[1758264091528,0.0818,4537.6,4537.5,0.5275]
[1758264091821,0.0818,4537.6,4537.5,1.82118706]
[1758264092026,0.0818,4537.6,4537.5,2.14148706]
[1758264093528,0.0818,4537.6,4537.5,1.91948706]
[1758264093725,0.0818,4537.6,4537.5,2.14148706]
[1758264096720,3.7791197,4537.9,4537.8,0.7249]
[1758264097030,3.9427197,4537.9,4537.8,0.7249]
[1758264097827,0.1636,4537.9,4537.8,0.7249]
[1758264104032,0.0818,4537.9,4537.8,0.7249]
[1758264104829,0.00330462,4538.1,4538.0,0.8478]
[1758264105128,0.00330462,4538.1,4538.0,2.14148706]
[1758264105633,0.00330462,4538.1,4538.0,5.34928706]
[1758264105834,0.00330462,4538.1,4538.0,5.19320485]
[1758264107731,0.00330462,4538.1,4538.0,4.2776]
[1758264107930,0.00330462,4538.1,4538.0,5.19320485]
[1758264109230,3.78242432,4538.1,4538.0,5.19320485]
[1758264115640,3.78242432,4538.1,4538.0,4.97120485]
[1758264115841,3.78242432,4538.1,4538.0,5.19320485]
[1758264118239,3.78242432,4538.1,4538.0,4.97120485]
[1758264118439,3.78242432,4538.1,4538.0,5.19320485]
[1758264120234,3.78242432,4538.1,4538.0,6.1088097]
[1758264120439,3.76042432,4538.1,4538.0,6.1088097]
[1758264121140,3.76042432,4538.1,4538.0,10.32916969]
[1758264121531,0.5098,4539.1,4539.0,0.842]
[1758264121737,0.5098,4539.1,4539.0,1.97960485]
[1758264125941,0.7103,4539.1,4539.0,1.85440485]
[1758264128440,5.84621485,4539.1,4538.8,3.2078]
[1758264128641,1.62590485,4538.9,4538.8,3.2078]
[1758264128836,1.62590485,4538.9,4538.8,3.4298]
[1758264131545,0.7103,4538.9,4538.8,3.6392]
[1758264131745,0.7103,4538.9,4538.8,4.1466]
[1758264132641,3.11682432,4539.3,4538.9,0.306]
[1758264132847,3.62662432,4539.3,4539.2,1.63240485]
[1758264133042,3.62662432,4539.3,4539.2,1.85440485]
[1758264133243,3.31102432,4539.3,4539.2,1.85440485]
[1758264133451,3.11682432,4539.3,4539.2,1.85440485]
[1758264134149,3.62662432,4539.3,4539.2,1.85440485]
[1758264134946,3.31102432,4539.3,4539.2,1.85440485]
[1758264135246,3.62662432,4539.3,4539.2,1.85440485]
[1758264135646,3.11682432,4539.3,4539.2,1.85440485]
[1758264136543,0.3156,4539.6,4539.3,0.7168]
[1758264137049,0.7656,4539.4,4539.3,0.7168]
[1758264137349,0.9598,4539.4,4539.3,0.7168]
[1758264137746,0.9598,4539.4,4539.3,3.9246]
[1758264140144,1.1603,4539.4,4539.3,0.7168]
[1758264140351,1.1603,4539.4,4539.3,0.9388]
[1758264141744,5.28370485,4539.4,4539.0,0.022]
[1758264141940,1.62590485,4539.1,4539.0,0.022]
[1758264142346,0.7103,4538.9,4538.8,3.4298]
[1758264143747,0.7103,4538.9,4538.8,3.6392]
[1758264144651,0.7103,4538.9,4538.8,3.9452]
[1758264144846,0.7103,4538.9,4538.8,4.86080485]
[1758264145046,0.7103,4538.9,4538.8,5.06220485]
[1758264145551,3.82712432,4538.9,4538.8,4.1466]
[1758264145950,3.82712432,4538.9,4538.8,5.06220485]
[1758264149951,3.82712432,4538.9,4538.8,1.85440485]
[1758264154060,3.82712432,4538.9,4538.8,0.9388]
[1758264154257,3.82712432,4538.9,4538.8,1.85440485]
[1758264159664,0.7103,4538.9,4538.8,1.85440485]
[1758264159967,1.62590485,4538.9,4538.6,0.93760485]
[1758264160167,0.704,4538.8,4538.7,0.221]
[1758264160465,0.3959,4538.8,4538.6,0.022]
[1758264160655,1.61960485,4538.7,4538.6,0.022]
[1758264161055,0.704,4538.4,4538.3,3.2078]
[1758264161267,0.704,4538.4,4538.3,3.4078]
[1758264161472,0.704,4538.4,4538.3,3.7127]
[1758264162767,0.704,4538.4,4538.3,3.913]
[1758264166480,0.704,4538.4,4538.2,0.221]
[1758264169381,0.704,4538.4,4538.3,0.2]
[1758264169584,0.704,4538.4,4538.3,0.5049]
[1758264170879,0.704,4538.4,4538.1,0.022]
[1758264171183,1.77529372,4538.2,4538.1,0.022]
[1758264171584,0.704,4537.9,4537.8,0.421]
[1758264172184,0.704,4537.9,4537.8,0.7259]
[1758264172387,0.704,4537.9,4537.8,0.9262]
[1758264174583,0.704,4537.9,4537.8,0.7052]
[1758264174786,0.704,4537.9,4537.8,0.9262]
[1758264177489,3.82082432,4537.9,4537.8,0.6213]
[1758264177681,3.82082432,4537.9,4537.8,0.421]
[1758264177985,3.82082432,4537.9,4537.8,0.7167]
[1758264179892,3.82082432,4537.9,4537.8,0.4957]
[1758264180081,3.82082432,4537.9,4537.8,0.2]
[1758264180280,4.89211804,4537.9,4537.6,0.022]
[1758264180988,4.89211804,4537.9,4537.7,0.3151]
[1758264181291,4.89211804,4537.9,4537.6,0.022]
[1758264181292,3.82122432,4537.9,4537.8,0.7385]
[1758264184986,3.61962432,4537.9,4537.8,0.7385]
[1758264186896,3.11682432,4537.9,4537.8,0.7385]
[1758264187879,3.62852432,4537.9,4537.8,0.7385]
[1758264189185,3.83502432,4537.9,4537.8,0.2099]
[1758264190986,3.83502432,4537.9,4537.8,0.7385]
[1758264192082,3.83502432,4537.9,4537.8,0.9595]
[1758264195093,3.11682432,4537.9,4537.8,0.9595]
[1758264195489,3.62852432,4537.9,4537.8,0.9595]
[1758264196691,3.11682432,4537.9,4537.8,0.9595]
[1758264200594,0.3085,4538.3,4537.8,0.6444]
[1758264200898,0.5117,4538.3,4538.2,0.7385]
[1758264201100,0.5117,4538.3,4538.2,0.9595]
[1758264205091,0.7182,4538.3,4538.2,0.9595]
[1758264205290,1.78949372,4538.3,4538.0,0.022]
[1758264205590,1.78949372,4538.3,4538.1,0.221]
[1758264206296,0.7182,4538.3,4538.1,0.221]
[1758264206501,0.7182,4538.3,4538.0,0.243]
[1758264208400,0.7182,4538.3,4538.0,0.022]
[1758264208600,0.7182,4538.3,4538.0,0.243]
[1758264208993,1.28419372,4538.1,4538.0,0.022]
[1758264209298,0.7092,4537.9,4537.8,0.221]
[1758264210108,3.82602432,4537.9,4537.8,0.221]
[1758264211204,3.82602432,4537.9,4537.8,0.715]
[1758264211804,3.82602432,4537.9,4537.8,0.4148]
[1758264212306,3.82602432,4537.9,4537.8,1.99865275]
[1758264213202,3.82602432,4537.9,4537.8,0.4148]
[1758264213807,3.82602432,4537.9,4537.8,0.715]
[1758264214704,3.82602432,4537.9,4537.8,0.9146]
[1758264216002,0.7092,4537.9,4537.8,0.9146]
[1758264216205,0.7092,4537.9,4537.8,1.98589372]
[1758264218510,0.7092,4537.9,4537.8,1.07129372]
[1758264218715,0.7092,4537.9,4537.8,1.29229372]
[1758264218906,0.7092,4537.9,4537.8,0.221]
[1758264220311,0.4097,4537.9,4537.6,1.09329372]
[1758264220516,0.2995,4537.8,4537.7,0.221]
[1758264220705,0.7092,4537.7,4537.6,1.09329372]
[1758264220905,0.7092,4537.7,4537.6,1.31429372]
[1758264221112,0.7092,4537.7,4537.6,1.29229372]
[1758264221516,0.7092,4537.7,4537.6,1.07129372]
[1758264221719,0.7092,4537.7,4537.6,1.29229372]
[1758264222118,0.7092,4537.7,4537.6,1.78629372]
[1758264222518,0.7092,4537.7,4537.6,1.98589372]
[1758264223018,0.7092,4537.7,4537.6,1.29229372]
[1758264223313,0.7092,4537.7,4537.5,3.2078]
[1758264223516,0.8357,4537.5,4537.4,1.97854191]
[1758264223715,0.8357,4537.5,4537.4,0.221]
[1758264227026,0.8357,4537.5,4537.2,1.09659834]
[1758264227220,0.2995,4537.4,4537.3,0.221]
[1758264227418,0.7092,4537.4,4537.3,0.221]
[1758264227720,0.7092,4537.4,4537.3,1.13698493]
[1758264228324,0.7092,4537.4,4537.3,1.33078493]
[1758264229219,0.7092,4537.4,4537.3,1.63098493]
[1758264230220,0.7092,4537.4,4537.3,1.33078493]
[1758264231024,0.7092,4537.4,4537.3,1.63098493]
[1758264233829,3.82602432,4537.4,4537.3,1.63098493]
[1758264234229,3.82602432,4537.4,4537.3,1.83058493]
[1758264234526,0.7092,4538.1,4538.0,0.6936]
[1758264234727,0.7092,4538.1,4538.0,0.9146]
[1758264236028,0.7092,4538.1,4538.0,0.4148]
[1758264236232,0.7063,4537.9,4537.8,0.221]
[1758264236433,1.62228493,4537.9,4537.8,0.221]
[1758264236640,0.7063,4537.6,4537.5,1.58408926]
[1758264236832,0.7063,4537.6,4537.5,1.80508926]
[1758264237032,0.7063,4537.6,4537.5,2.30698926]
[1758264237235,0.7063,4537.6,4537.5,0.9162]
[1758264239431,0.7063,4537.6,4537.5,1.0444]
[1758264239631,0.5129,4537.6,4537.5,1.96038493]
[1758264241435,0.2071,4537.6,4537.5,1.96038493]
[1758264241737,0.5075,4537.6,4537.5,1.96038493]
[1758264244238,0.7044,4537.6,4537.5,1.96038493]
[1758264246742,0.5075,4537.6,4537.5,1.96038493]
[1758264246942,0.1287,4538.0,4537.5,1.66018493]
[1758264247143,0.6939,4537.9,4537.8,1.61598493]
[1758264248441,0.6939,4537.9,4537.8,0.7]
[1758264249242,0.6939,4537.9,4537.8,1.61598493]
[1758264250351,0.6939,4537.9,4537.8,0.7]
[1758264250643,1.60988493,4537.9,4537.7,0.91598493]
[1758264250844,0.3935,4537.8,4537.7,0.221]
[1758264251146,0.6939,4537.8,4537.7,0.221]
[1758264251741,0.3935,4537.8,4537.6,0.221]
[1758264251942,0.6939,4537.7,4537.6,0.7193]
[1758264253445,0.6939,4537.7,4537.6,0.921]
[1758264258055,0.6939,4537.7,4537.6,0.7]
[1758264258544,0.6939,4537.7,4537.6,0.1937]
[1758264258748,0.6939,4537.3,4537.2,0.00330462]
[1758264267549,5.83088493,4537.3,4537.2,0.00330462]
[1758264267749,0.6939,4536.1,4535.8,0.3046]
[1758264267952,1.60988493,4535.9,4535.8,0.4983]
[1758264268657,1.60988493,4535.9,4535.8,0.7]
[1758264268958,1.60988493,4535.9,4535.4,0.91598493]
[1758264269254,0.4042,4535.7,4535.6,0.5356]
[1758264269459,1.32018493,4535.7,4535.6,0.5356]
[1758264269759,1.62878493,4535.7,4535.6,0.5356]
[1758264272455,1.62878493,4535.7,4535.6,0.7469]
[1758264276058,0.4042,4535.3,4534.8,3.2298]
[1758264276264,1.43758493,4535.0,4534.9,0.5356]
[1758264276569,0.5216,4535.0,4534.9,0.5356]
[1758264276766,0.8302,4535.0,4534.9,0.7469]